bitfinex/quotes_SOLUSD_20250802
["timestamp","ask_amount","ask_price","bid_price","bid_amount"]
[1754106518188,0.03,164.67,164.66,7.0963974]
[1754106518799,0.03,164.67,164.66,11.07880237]
[1754106539005,0.03,164.67,164.64,16.84468397]
[1754106539211,0.75,164.67,164.66,7.09055433]
[1754106545013,0.75,164.67,164.64,16.84468397]
[1754106545193,0.75,164.67,164.66,7.09055433]
[1754106545395,0.03,164.67,164.66,7.09055433]
[1754106546416,0.74,164.67,164.66,7.09055433]
[1754106551613,0.03,164.67,164.66,0.60731203]
[1754106551916,0.03,164.69,164.67,16.78468397]
[1754106552120,0.03,164.69,164.68,0.60723828]
[1754106553460,0.03,164.69,164.68,7.69779261]
[1754106561939,0.74,164.69,164.68,7.69779261]
[1754106568459,0.74,164.69,164.68,7.09055433]
[1754106572034,0.03,164.69,164.68,7.09055433]
[1754106573661,0.7,164.69,164.68,7.09055433]
[1754106579575,4.78547621,164.69,164.66,42.12]
[1754106579784,0.7,164.69,164.68,7.09055433]
[1754106579991,4.78547621,164.69,164.68,7.09055433]
[1754106580145,0.7,164.69,164.68,7.09055433]
[1754106580348,4.78547621,164.69,164.68,7.09055433]
[1754106580572,0.7,164.69,164.68,7.09055433]
[1754106580756,4.78547621,164.69,164.68,7.09055433]
[1754106580971,0.7,164.69,164.68,7.09055433]
[1754106583767,0.7,164.69,164.67,0.06]
[1754106583967,0.7,164.69,164.68,7.09055433]
[1754106584274,4.78547621,164.69,164.68,7.09055433]
[1754106584479,0.7,164.69,164.68,7.09055433]
[1754106584669,4.78547621,164.69,164.68,7.09055433]
[1754106584868,0.7,164.69,164.68,7.09055433]
[1754106585068,4.78547621,164.69,164.68,7.09055433]
[1754106585274,0.7,164.69,164.68,7.09055433]
[1754106585469,4.78547621,164.69,164.68,7.09055433]
[1754106585665,0.7,164.69,164.68,7.09055433]
[1754106585988,4.78547621,164.69,164.68,7.09055433]
[1754106586197,0.03,164.69,164.68,23.8752383]
[1754106586500,0.03,164.69,164.68,7.09055433]
[1754106587189,0.03,164.69,164.68,7.69779261]
[1754106587417,0.03,164.69,164.68,67.26247658]
[1754106593621,0.03,164.69,164.68,67.12247658]
[1754106601406,0.03,164.71,164.69,16.78468397]
[1754106601611,0.03,164.71,164.7,66.4352383]
[1754106602633,0.03,164.71,164.7,94.79745562]
[1754106607964,0.73,164.71,164.7,94.79745562]
[1754106608252,0.73,164.71,164.7,66.4352383]
[1754106609622,0.73,164.71,164.7,66.3952383]
[1754106611553,0.73,164.71,164.7,66.10787649]
[1754106613458,0.73,164.71,164.7,23.58787649]
[1754106613852,0.73,164.71,164.7,66.08787649]
[1754106616458,0.73,164.71,164.7,23.58787649]
[1754106616632,0.73,164.71,164.7,66.06787649]
[1754106618870,0.03,164.71,164.7,66.06787649]
[1754106620042,0.73,164.71,164.68,1.002572]
[1754106620244,0.73,164.71,164.69,43.8272014]
[1754106620245,0.03,164.71,164.69,43.8272014]
[1754106620451,0.61,164.76,164.71,42.78468397]
[1754106620649,0.61,164.76,164.75,6.80319252]
[1754106622356,0.64,164.79,164.75,7.46319252]
[1754106622563,0.64,164.79,164.78,6.80319252]
[1754106623788,0.03,164.79,164.78,6.80319252]
[1754106624586,0.64,164.79,164.78,6.80319252]
[1754106626767,4.09062847,164.81,164.78,6.80319252]
[1754106627359,26.03,164.82,164.78,6.80319252]
[1754106627689,4.08411,164.81,164.78,6.80319252]
[1754106627892,26.6374596,164.82,164.78,6.80319252]
[1754106628690,4.08291748,164.81,164.78,6.80319252]
[1754106628894,0.58,164.8,164.78,6.80319252]
[1754106630193,0.58,164.8,164.77,6.80319252]
[1754106630396,0.58,164.8,164.76,43.52]
[1754106630571,0.58,164.8,164.77,6.80319252]
[1754106631466,0.58,164.79,164.77,6.80319252]
[1754106633606,0.58,164.79,164.76,6.80319252]
[1754106633783,0.58,164.79,164.76,7.48319252]
[1754106634985,6.80319252,164.81,164.76,7.48319252]
[1754106635189,0.58,164.8,164.75,6.80319252]
[1754106635392,0.58,164.8,164.75,7.48319252]
[1754106635798,0.58,164.79,164.76,7.48319252]
[1754106635974,0.58,164.8,164.76,7.48319252]
[1754106636487,0.58,164.8,164.76,6.80319252]
[1754106636488,1.1874596,164.8,164.76,6.80319252]
[1754106636804,0.58,164.79,164.75,6.80319252]
[1754106637203,0.58,164.79,164.75,7.48319252]
[1754106637578,7.41065212,164.8,164.75,7.48319252]
[1754106637778,0.58,164.78,164.74,7.48319252]
[1754106638307,0.58,164.78,164.75,0.68]
[1754106640494,0.58,164.78,164.75,7.48319252]
[1754106642694,0.58,164.78,164.75,0.68]
[1754106642891,4.07840744,164.79,164.75,0.68]
[1754106643108,4.65840744,164.79,164.75,0.68]
[1754106643496,0.58,164.78,164.75,0.68]
[1754106644012,4.07840744,164.79,164.75,0.68]
[1754106644209,0.58,164.78,164.72,16.78468397]
[1754106644412,0.58,164.78,164.74,7.48319252]
[1754106644910,7.38319252,164.79,164.75,0.68]
[1754106645892,7.41319252,164.79,164.75,0.68]
[1754106648331,0.61,164.79,164.76,0.68]
[1754106648630,0.03,164.79,164.76,0.68]
[1754106648807,4.11047573,164.79,164.76,0.68]
[1754106649926,0.03,164.79,164.76,7.48319252]
[1754106650134,0.03,164.79,164.77,0.68]
[1754106650930,0.03,164.79,164.78,0.68]
[1754106654543,6.83319252,164.79,164.73,0.06]
[1754106654708,0.03,164.79,164.77,6.80319252]
[1754106655033,0.03,164.79,164.77,0.68]
[1754106656106,0.03,164.79,164.77,7.48319252]
[1754106656507,0.03,164.79,164.78,0.68]
[1754106659532,0.03,164.79,164.78,7.48319252]
[1754106661111,0.03,164.79,164.78,0.68]
[1754106664151,4.1125468,164.79,164.78,0.68]
[1754106664334,0.03,164.79,164.78,0.68]
[1754106664539,4.1125468,164.79,164.78,0.68]
[1754106664740,0.03,164.79,164.78,0.68]
[1754106665042,4.1125468,164.79,164.78,0.68]
[1754106665237,0.03,164.79,164.78,0.68]
[1754106665446,4.1125468,164.79,164.78,0.68]
[1754106667526,0.03,164.79,164.78,0.68]
[1754106667728,4.1125468,164.79,164.78,0.68]
[1754106667922,0.03,164.79,164.78,0.74]
[1754106668127,4.1125468,164.79,164.78,0.74]
[1754106668347,0.03,164.79,164.78,0.74]
[1754106668548,4.1125468,164.79,164.78,0.74]
[1754106668844,0.03,164.79,164.78,0.74]
[1754106669047,4.1125468,164.79,164.78,0.74]
[1754106669227,0.03,164.79,164.78,0.74]
[1754106669426,4.1125468,164.79,164.78,0.74]
[1754106669644,0.03,164.79,164.78,0.74]
[1754106669847,4.1125468,164.79,164.78,0.74]
[1754106670046,0.03,164.79,164.78,0.74]
[1754106670237,4.1125468,164.79,164.78,0.74]
[1754106670423,0.03,164.79,164.78,0.74]
[1754106670737,4.1125468,164.79,164.78,0.74]
[1754106671045,0.03,164.79,164.78,0.74]
[1754106671344,4.1125468,164.79,164.78,0.74]
[1754106671544,0.03,164.79,164.78,0.74]
[1754106671748,4.1125468,164.79,164.78,0.74]
[1754106671945,0.03,164.79,164.78,0.74]
[1754106672246,4.1125468,164.79,164.78,0.74]
[1754106672433,0.03,164.79,164.78,0.74]
[1754106672747,4.1125468,164.79,164.78,0.74]
[1754106673046,0.03,164.79,164.78,0.74]
[1754106673348,4.1125468,164.79,164.78,0.74]
[1754106673547,0.03,164.79,164.78,0.74]
[1754106673749,4.1125468,164.79,164.78,0.74]
[1754106673930,0.03,164.79,164.78,0.74]
[1754106674128,4.1125468,164.79,164.78,0.74]
[1754106674328,0.03,164.79,164.78,0.74]
[1754106674639,4.1125468,164.79,164.78,0.74]
[1754106674841,0.03,164.79,164.78,0.74]
[1754106675029,4.1125468,164.79,164.78,0.74]
[1754106675229,0.03,164.79,164.78,0.74]
[1754106675442,4.1125468,164.79,164.78,0.74]
[1754106675645,0.03,164.79,164.78,0.74]
[1754106675848,4.1125468,164.79,164.78,0.74]
[1754106676052,0.03,164.79,164.78,0.74]
[1754106676235,4.1125468,164.79,164.78,0.74]
[1754106676432,0.03,164.79,164.78,0.74]
[1754106676643,4.1125468,164.79,164.78,0.74]
[1754106676842,0.03,164.79,164.78,0.74]
[1754106677047,4.1125468,164.79,164.78,0.74]
[1754106677249,0.03,164.79,164.78,0.74]
[1754106677547,4.1125468,164.79,164.78,0.74]
[1754106677745,0.03,164.79,164.78,0.74]
[1754106677937,4.1125468,164.79,164.78,0.74]
[1754106678245,0.03,164.79,164.78,0.74]
[1754106678444,4.1125468,164.79,164.78,0.74]
[1754106678657,0.03,164.79,164.78,0.74]
[1754106678838,4.1125468,164.79,164.78,0.74]
[1754106679040,0.03,164.79,164.78,0.74]
[1754106679243,4.1125468,164.79,164.78,0.74]
[1754106679449,0.03,164.79,164.78,0.74]
[1754106679640,4.1125468,164.79,164.78,0.74]
[1754106679843,0.03,164.79,164.78,0.74]
[1754106680047,4.1125468,164.79,164.78,0.74]
[1754106680243,0.03,164.79,164.78,0.74]
[1754106680443,4.1125468,164.79,164.78,0.74]
[1754106680645,0.03,164.79,164.78,0.74]
[1754106680942,4.1125468,164.79,164.78,0.74]
[1754106681136,0.03,164.79,164.78,0.74]
[1754106681338,4.1125468,164.79,164.78,0.74]
[1754106681557,0.03,164.79,164.78,0.74]
[1754106681742,4.1125468,164.79,164.78,0.74]
[1754106681945,0.03,164.79,164.78,0.74]
[1754106682259,4.12427264,164.79,164.78,0.74]
[1754106682435,0.03,164.79,164.78,0.74]
[1754106682640,43.23276556,164.79,164.76,0.02]
[1754106682838,26.0,164.74,164.73,0.06]
[1754106683040,79.75746516,164.74,164.73,0.06]
[1754106683267,79.75746516,164.74,164.67,0.06]
[1754106683268,26.0,164.7,164.67,0.06]
[1754106683478,6.80319252,164.68,164.67,0.06]
[1754106683780,36.89746516,164.68,164.67,0.06]
[1754106684065,26.0,164.65,164.61,0.2]
[1754106684237,6.80319252,164.62,164.61,0.2]
[1754106684636,11.90537362,164.62,164.61,0.2]
[1754106685051,7.83065212,164.62,164.61,0.2]
[1754106686633,33.83065212,164.62,164.61,0.2]
[1754106686838,39.08061629,164.62,164.61,0.2]
[1754106687036,45.15521232,164.62,164.61,0.2]
[1754106687237,41.09583486,164.62,164.61,0.2]
[1754106687839,35.02123883,164.62,164.61,0.2]
[1754106689664,41.09583486,164.62,164.61,0.2]
[1754106690261,57.88051883,164.62,164.61,0.2]
[1754106690467,42.78468397,164.6,164.59,0.2]
[1754106690664,100.36125694,164.6,164.59,0.2]
[1754106690848,100.78125694,164.6,164.59,0.2]
[1754106692039,94.7059228,164.6,164.59,0.2]
[1754106693956,51.8059228,164.6,164.59,0.2]
[1754106694165,94.7259228,164.6,164.59,0.2]
[1754106694369,97.1617538,164.6,164.59,0.2]
[1754106694755,97.1417538,164.6,164.59,0.2]
[1754106696185,103.21708794,164.6,164.59,0.2]
[1754106697475,60.31708794,164.6,164.59,0.2]
[1754106697674,103.19708794,164.6,164.59,0.2]
[1754106703369,26.0,164.56,164.55,0.2]
[1754106703585,75.61224243,164.56,164.55,0.2]
[1754106703874,42.78468397,164.54,164.53,0.06]
[1754106704076,94.2659228,164.54,164.53,0.06]
[1754106704248,43.39214357,164.54,164.53,0.06]
[1754106704453,69.9874596,164.54,164.53,0.72]
[1754106704672,26.6074596,164.54,164.53,0.72]
[1754106704882,0.6074596,164.54,164.53,0.72]
[1754106705076,43.38,164.54,164.53,0.72]
[1754106705957,94.1584632,164.54,164.53,0.06]
[1754106706289,100.65601273,164.54,164.53,0.06]
[1754106706861,77.09288273,164.54,164.53,0.06]
[1754106708191,24.7784632,164.53,164.34,49.86487562]
[1754106708395,25.8059228,164.53,164.45,0.66]
[1754106709202,42.78468397,164.49,164.46,0.66]
[1754106709370,7.99377923,164.47,164.44,0.66]
[1754106709573,44.0074596,164.46,164.45,0.66]
[1754106709787,52.00123883,164.46,164.45,0.66]
[1754106711496,78.00123883,164.46,164.43,0.66]
[1754106711793,78.00123883,164.46,164.39,7.99377923]
[1754106711794,7.99377923,164.44,164.39,7.99377923]
[1754106711998,43.9874596,164.43,164.39,7.99377923]
[1754106712310,51.98123883,164.43,164.4,0.66]
[1754106712674,43.9874596,164.43,164.4,8.65377923]
[1754106712874,43.9874596,164.43,164.36,26.0]
[1754106713070,51.98123883,164.43,164.41,0.66]
[1754106713293,51.98123883,164.43,164.42,0.66]
[1754106713501,51.98123883,164.43,164.41,0.66]
[1754106713816,0.6074596,164.43,164.42,0.66]
[1754106713974,43.36,164.43,164.42,0.66]
[1754106714300,43.9674596,164.43,164.42,0.66]
[1754106718093,51.96123883,164.43,164.4,0.66]
[1754106718397,51.96123883,164.43,164.38,7.99377923]
[1754106718398,51.96123883,164.43,164.41,0.66]
[1754106718775,43.9674596,164.43,164.41,0.66]
[1754106718974,43.9674596,164.43,164.42,0.66]
[1754106722690,43.36,164.43,164.42,0.66]
[1754106722909,43.9674596,164.43,164.42,0.66]
[1754106723892,43.3,164.43,164.42,0.66]
[1754106724090,0.6074596,164.44,164.42,0.66]
[1754106724288,43.28,164.43,164.42,8.65377923]
[1754106724711,43.28,164.43,164.42,0.66]
[1754106726397,0.6074596,164.45,164.42,0.66]
[1754106726601,43.26,164.44,164.42,8.65377923]
[1754106726805,0.6074596,164.43,164.42,7.99377923]
[1754106727305,0.6074596,164.43,164.42,8.66377923]
[1754106727899,0.6074596,164.43,164.42,0.67]
[1754106728105,0.6074596,164.43,164.42,8.66377923]
[1754106728502,43.26,164.44,164.42,8.66377923]
[1754106728723,43.26,164.44,164.43,8.66377923]
[1754106730697,26.6074596,164.5,164.43,8.66377923]
[1754106730899,47.29447793,164.49,164.46,7.99377923]
[1754106731198,0.6074596,164.48,164.47,0.67]
[1754106731398,0.6074596,164.48,164.47,8.66377923]
[1754106731817,0.6074596,164.48,164.47,0.67]
[1754106732918,0.6074596,164.48,164.47,8.66377923]
[1754106735625,43.8674596,164.49,164.47,8.66377923]
[1754106735804,0.6074596,164.49,164.48,8.66377923]
[1754106736006,43.2,164.49,164.48,16.65755846]
[1754106736205,43.2,164.49,164.48,8.66377923]
[1754106736720,43.2,164.49,164.48,8.84800048]
[1754106739602,43.2,164.49,164.48,8.6661603]
[1754106741325,43.2,164.49,164.48,0.67]
[1754106741515,43.2,164.49,164.48,8.6661603]
[1754106742629,43.2,164.49,164.48,7.9961603]
[1754106742998,43.2,164.49,164.48,8.6661603]
[1754106745430,1.0274596,164.52,164.48,8.6661603]
[1754106745431,43.14,164.5,164.48,8.6661603]
[1754106745725,43.14,164.5,164.49,8.6661603]
[1754106746721,43.14,164.52,164.49,8.6661603]
[1754106746903,43.14,164.52,164.51,7.9961603]
[1754106747216,43.14,164.52,164.51,8.6661603]
[1754106747622,43.12,164.52,164.51,8.6661603]
[1754106750410,43.12,164.53,164.51,8.6661603]
[1754106750604,43.12,164.53,164.52,8.6861603]
[1754106751012,0.03,164.54,164.52,8.6861603]
[1754106751204,0.03,164.54,164.53,7.9961603]
[1754106751629,0.03,164.54,164.52,7.9961603]
[1754106751840,43.14,164.53,164.52,7.9961603]
[1754106755111,43.17,164.53,164.52,7.9961603]
[1754106755311,43.17,164.53,164.52,8.6861603]
[1754106758210,43.17,164.53,164.51,7.9961603]
[1754106759219,43.17,164.53,164.5,0.69]
[1754106759632,43.17,164.53,164.51,7.9961603]
[1754106760245,43.17,164.53,164.51,8.6861603]
[1754106760542,43.17,164.53,164.52,8.6861603]
[1754106760728,43.17,164.53,164.52,0.69]
[1754106762525,43.17,164.53,164.51,7.9961603]
[1754106762729,43.17,164.53,164.51,8.6861603]
[1754106763928,43.17,164.53,164.51,7.9961603]
[1754106764848,43.17,164.53,164.51,8.6861603]
[1754106765047,43.17,164.53,164.52,0.69]
[1754106765253,0.03,164.53,164.52,8.6861603]
[1754106769057,0.03,164.53,164.51,7.9961603]
[1754106769260,0.03,164.53,164.5,18.955396]
[1754106769431,0.03,164.53,164.51,7.9961603]
[1754106769628,0.03,164.53,164.48,0.75]
[1754106769844,0.45,164.53,164.51,7.9961603]
[1754106770252,0.03,164.53,164.52,7.9961603]
[1754106770658,0.03,164.53,164.52,8.6861603]
[1754106770954,0.03,164.53,164.52,7.9961603]
[1754106771152,0.03,164.53,164.5,0.69]
[1754106771337,0.03,164.53,164.52,7.9961603]
[1754106771743,0.03,164.53,164.52,8.6861603]
[1754106773652,0.03,164.53,164.52,0.69]
[1754106773829,0.03,164.53,164.52,7.9961603]
[1754106775270,0.03,164.53,164.52,8.6861603]
[1754106777348,0.03,164.53,164.52,8.7461603]
[1754106778049,0.03,164.53,164.52,0.75]
[1754106778252,0.03,164.53,164.52,8.7461603]
[1754106778941,0.03,164.53,164.52,0.75]
[1754106779141,0.03,164.53,164.52,8.7461603]
[1754106785279,0.03,164.53,164.52,25.53084427]
[1754106788692,0.03,164.53,164.52,27.96608227]
[1754106789159,0.03,164.53,164.52,25.53084427]
[1754106794975,0.03,164.53,164.52,27.96608227]
[1754106796090,0.03,164.53,164.52,25.53084427]
[1754106800583,0.03,164.53,164.52,27.96608227]
[1754106801091,0.03,164.53,164.52,70.80608227]
[1754106803388,0.03,164.53,164.52,70.11608227]
[1754106803691,0.03,164.53,164.52,94.39084427]
[1754106804371,0.03,164.53,164.52,96.82608227]
[1754106804968,0.03,164.55,164.53,16.78468397]
[1754106805168,0.03,164.56,164.55,16.78468397]
[1754106805475,0.03,164.56,164.55,58.77700457]
[1754106805789,0.03,164.56,164.55,77.74684157]
[1754106816127,0.03,164.56,164.55,61.75452097]
[1754106816291,0.03,164.56,164.55,26.2559973]
[1754106816496,0.03,164.56,164.55,7.9961603]
[1754106816812,0.45,164.56,164.53,2.434941]
[1754106816988,0.45,164.56,164.55,7.9961603]
[1754106818219,0.45,164.56,164.52,0.06]
[1754106818425,0.45,164.56,164.55,7.9961603]
[1754106823598,0.45,164.56,164.52,0.06]
[1754106823832,0.45,164.56,164.55,7.9961603]
[1754106824817,0.45,164.56,164.52,0.74]
[1754106825023,0.45,164.56,164.55,7.9961603]
[1754106825597,0.03,164.56,164.55,7.9961603]
[1754106825990,0.03,164.56,164.55,8.6761603]
[1754106826902,0.03,164.56,164.55,7.9961603]
[1754106827293,0.45,164.56,164.55,7.9961603]
[1754106828010,0.03,164.56,164.55,7.9961603]
[1754106829431,0.03,164.56,164.53,0.68]
[1754106829630,0.03,164.56,164.55,7.9961603]
[1754106830729,0.03,164.56,164.55,8.6761603]
[1754106831402,0.03,164.56,164.55,16.6723206]
[1754106831742,0.03,164.56,164.55,8.6761603]
[1754106838440,0.03,164.56,164.55,16.6723206]
[1754106839742,0.03,164.56,164.55,33.45700457]
[1754106842658,0.03,164.58,164.55,33.51700457]
[1754106842837,0.03,164.58,164.57,33.9961603]
[1754106843147,0.6074596,164.66,164.57,50.78084427]
[1754106843322,5.09858386,164.66,164.65,7.9961603]
[1754106843522,5.09858386,164.66,164.6,0.69]
[1754106843722,4.67858386,164.66,164.65,7.9961603]
[1754106844325,5.09858386,164.66,164.65,7.9961603]
[1754106845336,5.09858386,164.66,164.6,0.69]
[1754106845658,4.67858386,164.66,164.64,7.9961603]
[1754106845840,0.42,164.65,164.6,0.69]
[1754106846153,0.42,164.65,164.64,7.9961603]
[1754106846326,0.42,164.65,164.57,42.78468397]
[1754106846532,0.6074596,164.64,164.61,7.9961603]
[1754106846729,0.42,164.63,164.61,7.9961603]
[1754106846951,0.6074596,164.64,164.62,7.9961603]
[1754106847457,0.6074596,164.65,164.62,7.9961603]
[1754106847753,1.0274596,164.65,164.62,7.9961603]
[1754106847954,0.6074596,164.65,164.63,7.9961603]
[1754106848249,0.42,164.64,164.63,7.9961603]
[1754106849345,0.42,164.64,164.62,7.9961603]
[1754106849551,0.6074596,164.63,164.62,7.9961603]
[1754106849851,1.0274596,164.63,164.62,7.9961603]
[1754106851465,43.8474596,164.63,164.62,7.9961603]
[1754106851660,43.4274596,164.63,164.62,7.9961603]
[1754106852748,43.8474596,164.63,164.62,7.9961603]
[1754106852960,47.91551116,164.63,164.6,7.9961603]
[1754106853129,4.48805156,164.62,164.6,7.9961603]
[1754106853331,1.0274596,164.61,164.6,7.9961603]
[1754106854146,0.6074596,164.61,164.6,7.9961603]
[1754106854858,0.6074596,164.61,164.57,0.69]
[1754106855058,0.6074596,164.61,164.59,7.9961603]
[1754106855354,1.0274596,164.61,164.59,7.9961603]
[1754106855756,0.42,164.6,164.55,0.75]
[1754106855932,42.94,164.59,164.58,7.9961603]
[1754106857268,42.94,164.59,164.57,0.69]
[1754106857439,42.94,164.59,164.58,7.9961603]
[1754106857765,42.94,164.59,164.57,0.69]
[1754106857766,42.94,164.59,164.57,7.9961603]
[1754106857956,0.6074596,164.58,164.57,7.9961603]
[1754106858555,0.6074596,164.58,164.56,7.9961603]
[1754106860235,0.6074596,164.58,164.56,8.6861603]
[1754106863975,0.6074596,164.58,164.55,8.0561603]
[1754106864268,4.67559333,164.58,164.55,0.06]
[1754106864451,0.42,164.57,164.55,0.06]
[1754106864772,0.6074596,164.56,164.55,0.06]
[1754106866360,9.0236199,164.56,164.55,0.06]
[1754106866559,13.09074397,164.56,164.55,0.06]
[1754106867852,12.67074397,164.56,164.55,0.06]
[1754106868461,4.67458367,164.56,164.55,0.06]
[1754106868883,43.4874596,164.56,164.55,0.06]
[1754106869053,47.55458367,164.56,164.55,0.06]
[1754106870356,55.54586823,164.56,164.55,0.06]
[1754106870565,55.96586823,164.56,164.55,0.06]
[1754106871885,55.54586823,164.56,164.55,0.06]
[1754106873500,55.96586823,164.56,164.55,0.06]
[1754106873703,62.04267911,164.56,164.55,0.06]
[1754106875510,55.96586823,164.56,164.55,0.06]
[1754106875804,47.54970793,164.56,164.55,0.06]
[1754106877309,55.54586823,164.56,164.55,0.06]
[1754106877985,55.96586823,164.56,164.55,0.06]
[1754106878302,55.54586823,164.56,164.55,0.06]
[1754106879106,61.62267911,164.56,164.55,0.06]
[1754106879310,62.04267911,164.56,164.55,0.06]
[1754106882230,61.62267911,164.56,164.55,0.06]
[1754106883812,12.66586823,164.56,164.55,0.06]
[1754106884006,51.4836199,164.56,164.55,0.78]
[1754106884688,43.4874596,164.56,164.55,0.78]
[1754106885621,43.4674596,164.56,164.55,0.78]
[1754106886001,43.4674596,164.56,164.55,0.06]
[1754106886909,51.4636199,164.56,164.55,0.06]
[1754106887092,43.4674596,164.56,164.55,0.06]
[1754106888215,43.4674596,164.56,164.55,0.78]
[1754106890009,0.6074596,164.56,164.55,0.78]
[1754106890220,43.4274596,164.56,164.55,0.78]
[1754106891417,43.4274596,164.56,164.55,0.06]
[1754106891819,43.4274596,164.56,164.55,0.78]
[1754106892227,47.48554855,164.56,164.55,0.78]
[1754106892445,4.66554855,164.56,164.55,0.06]
[1754106892745,47.46554855,164.56,164.55,0.06]
[1754106893252,47.46554855,164.56,164.55,0.78]
[1754106893718,0.6074596,164.56,164.55,8.7761603]
[1754106893924,43.4074596,164.56,164.55,8.7761603]
[1754106894941,43.4074596,164.56,164.55,5.89505179]
[1754106895131,43.4074596,164.56,164.55,0.78]
[1754106898329,47.47455801,164.56,164.55,0.78]
[1754106899932,43.4074596,164.56,164.55,0.78]
[1754106900438,42.8,164.56,164.55,5.89505179]
[1754106901439,43.4074596,164.56,164.55,5.89505179]
[1754106902752,42.8,164.56,164.55,5.89505179]
[1754106902954,43.4074596,164.56,164.55,5.89505179]
[1754106903546,42.8,164.56,164.55,5.89505179]
[1754106904351,43.4074596,164.56,164.55,5.89505179]
[1754106904544,42.8,164.56,164.55,5.89505179]
[1754106911156,46.87414515,164.56,164.55,5.89505179]
[1754106911846,42.8,164.56,164.55,5.89505179]
[1754106917158,43.4074596,164.56,164.55,5.89505179]
[1754106917463,47.48056694,164.56,164.55,5.89505179]
[1754106917649,46.87310734,164.56,164.55,5.89505179]
[1754106918755,46.87391251,164.56,164.55,5.89505179]
[1754106919357,47.48137211,164.56,164.55,5.17505179]
[1754106920180,4.68137211,164.56,164.55,5.17505179]
[1754106920471,47.32137211,164.56,164.55,5.17505179]
[1754106921556,47.32137211,164.56,164.55,5.84505179]
[1754106921985,46.71391251,164.56,164.55,5.84505179]
[1754106922281,4.07391251,164.56,164.55,5.84505179]
[1754106922470,47.32137211,164.56,164.55,5.84505179]
[1754106923781,4.68137211,164.56,164.55,5.84505179]
[1754106923983,46.71391251,164.56,164.55,5.84505179]
[1754106927083,4.07391251,164.56,164.55,5.84505179]
[1754106927694,46.71391251,164.56,164.55,5.84505179]
[1754106928185,4.07391251,164.56,164.55,5.84505179]
[1754106928388,46.71391251,164.56,164.55,5.84505179]
[1754106928559,47.32137211,164.56,164.55,5.84505179]
[1754106928883,47.32137211,164.56,164.55,5.17505179]
[1754106929294,47.32137211,164.56,164.55,5.84505179]
[1754106930107,4.68137211,164.56,164.55,5.84505179]
[1754106930285,47.32137211,164.56,164.55,5.84505179]
[1754106931085,4.68137211,164.56,164.55,5.84505179]
[1754106931286,47.32137211,164.56,164.55,5.84505179]
[1754106932201,4.68137211,164.56,164.55,5.17505179]
[1754106932378,47.32137211,164.56,164.55,5.17505179]
[1754106932993,4.68137211,164.56,164.55,5.17505179]
[1754106933201,47.32137211,164.56,164.55,5.17505179]
[1754106933385,4.68137211,164.56,164.55,5.17505179]
[1754106933580,47.32137211,164.56,164.55,5.17505179]
[1754106935799,47.32137211,164.56,164.55,5.88505179]
[1754106936993,4.07391251,164.56,164.55,5.88505179]
[1754106937192,46.71391251,164.56,164.55,5.88505179]
[1754106938898,4.07391251,164.56,164.55,5.88505179]
[1754106939200,46.71391251,164.56,164.55,5.88505179]
[1754106940074,4.07391251,164.56,164.55,5.88505179]
[1754106940278,46.71391251,164.56,164.55,5.88505179]
[1754106940480,4.07391251,164.56,164.55,5.88505179]
[1754106940700,46.71391251,164.56,164.55,5.88505179]
[1754106940903,4.07391251,164.56,164.55,5.88505179]
[1754106941283,46.71391251,164.56,164.55,5.88505179]
[1754106942178,4.07391251,164.56,164.55,5.88505179]
[1754106942379,46.71391251,164.56,164.55,5.88505179]